[Event "Early-Titled-Tuesday-Blitz-February-13-2024"]
[Site "Chess.com"]
[Date "2024.02.13"]
[Round "7"]
[White "alexrustemov"]
[Black "andrzej"]
[Result "1-0"]
[WhiteElo "2830"]
[BlackElo "2510"]
[TimeControl "180+1"]
[EndTime "9:20:39 PST"]
[Termination "alexrustemov won by checkmate"]

1. d4 {[%clk 0:02:57.6]} 1... d5 {[%clk 0:03:00.2]} 2. c4 {[%clk 0:02:57]} 2...
e6 {[%clk 0:03:00.4]} 3. Nc3 {[%clk 0:02:57.4]} 3... Nf6 {[%clk 0:03:00.4]} 4.
Nf3 {[%clk 0:02:57.5]} 4... a6 {[%clk 0:03:00.1]} 5. cxd5 {[%clk 0:02:57.3]}
5... exd5 {[%clk 0:03:00.1]} 6. Bg5 {[%clk 0:02:57.9]} 6... Be6 {[%clk
0:03:00.2]} 7. e3 {[%clk 0:02:58.2]} 7... Nbd7 {[%clk 0:03:00.1]} 8. Bd3 {[%clk
0:02:58.6]} 8... Bd6 {[%clk 0:02:58.4]} 9. Qc2 {[%clk 0:02:58.8]} 9... c6 {[%clk
0:02:58.3]} 10. Bf4 {[%clk 0:02:59.2]} 10... Qc7 {[%clk 0:02:58.6]} 11. Bxd6
{[%clk 0:02:59.2]} 11... Qxd6 {[%clk 0:02:58.7]} 12. h3 {[%clk 0:02:59.8]} 12...
h6 {[%clk 0:02:56.2]} 13. O-O {[%clk 0:02:59.4]} 13... O-O {[%clk 0:02:56.1]}
14. Rfc1 {[%clk 0:02:58.2]} 14... Qe7 {[%clk 0:02:47.6]} 15. Na4 {[%clk
0:02:57.6]} 15... Ne8 {[%clk 0:02:41.1]} 16. Nc5 {[%clk 0:02:56.2]} 16... Nd6
{[%clk 0:02:39.1]} 17. b4 {[%clk 0:02:54.4]} 17... Rfe8 {[%clk 0:02:20.4]} 18.
a4 {[%clk 0:02:53]} 18... g6 {[%clk 0:02:17]} 19. Rab1 {[%clk 0:02:45.9]} 19...
Rab8 {[%clk 0:02:01.2]} 20. b5 {[%clk 0:02:45.1]} 20... cxb5 {[%clk 0:01:56.7]}
21. axb5 {[%clk 0:02:46]} 21... a5 {[%clk 0:01:57]} 22. b6 {[%clk 0:02:41.5]}
22... Bf5 {[%clk 0:01:56]} 23. Bxf5 {[%clk 0:02:26.8]} 23... Nxf5 {[%clk
0:01:55.7]} 24. Qb3 {[%clk 0:02:20.1]} 24... Nf6 {[%clk 0:01:43.1]} 25. Ne5
{[%clk 0:02:18.1]} 25... Kg7 {[%clk 0:01:39.6]} 26. Ra1 {[%clk 0:02:14.9]} 26...
Ra8 {[%clk 0:01:25.1]} 27. Rc2 {[%clk 0:02:09.2]} 27... Red8 {[%clk 0:01:15.7]}
28. Rca2 {[%clk 0:02:08]} 28... Nh7 {[%clk 0:01:12.3]} 29. Rxa5 {[%clk
0:02:06.2]} 29... Rab8 {[%clk 0:01:10]} 30. Ncd3 {[%clk 0:02:02.5]} 30... f6
{[%clk 0:01:07.3]} 31. Nf3 {[%clk 0:01:58]} 31... Qe4 {[%clk 0:00:53]} 32. Nf4
{[%clk 0:01:49.2]} 32... Ng5 {[%clk 0:00:38.1]} 33. Nd2 {[%clk 0:01:42.1]} 33...
Nxd4 {[%clk 0:00:29.9]} 34. Qd1 {[%clk 0:01:14.5]} 34... Nc2 {[%clk 0:00:23]}
35. R1a4 {[%clk 0:01:12.4]} 35... Qf5 {[%clk 0:00:15]} 36. Rc5 {[%clk
0:00:54.7]} 36... Rbc8 {[%clk 0:00:13]} 37. Rc7+ {[%clk 0:00:52.7]} 37... Kg8
{[%clk 0:00:11]} 38. g4 {[%clk 0:00:50.5]} 38... Nxh3+ {[%clk 0:00:07.3]} 39.
Nxh3 {[%clk 0:00:49.7]} 39... Qd3 {[%clk 0:00:07.4]} 40. Nf4 {[%clk 0:00:44.8]}
40... Qb3 {[%clk 0:00:07.5]} 41. Ra7 {[%clk 0:00:35.4]} 41... Qxb6 {[%clk
0:00:07.2]} 42. Rcxb7 {[%clk 0:00:30.1]} 42... Qc5 {[%clk 0:00:06.5]} 43. Rg7+
{[%clk 0:00:29.6]} 43... Kf8 {[%clk 0:00:06.3]} 44. Nxg6+ {[%clk 0:00:29.9]}
44... Ke8 {[%clk 0:00:06.6]} 45. Rae7+ {[%clk 0:00:29.6]} 45... Qxe7 {[%clk
0:00:06.9]} 46. Rxe7# {[%clk 0:00:29.8]} 1-0

[Event "Early-Titled-Tuesday-Blitz-February-13-2024"]
[Site "Chess.com"]
[Date "2024.02.13"]
[Round "7"]
[White "maxip32"]
[Black "Binary010"]
[Result "0-1"]
[WhiteElo "2668"]
[BlackElo "2900"]
[TimeControl "180+1"]
[EndTime "9:20:40 PST"]
[Termination "Binary010 won by resignation"]

1. e4 {[%clk 0:03:00.9]} 1... c5 {[%clk 0:02:59]} 2. Nf3 {[%clk 0:03:00.8]} 2...
d6 {[%clk 0:02:59.5]} 3. d4 {[%clk 0:03:00.6]} 3... cxd4 {[%clk 0:03:00.4]} 4.
Nxd4 {[%clk 0:03:01]} 4... Nf6 {[%clk 0:03:00.6]} 5. Nc3 {[%clk 0:03:01.5]} 5...
a6 {[%clk 0:03:01.1]} 6. Be2 {[%clk 0:03:01.2]} 6... e5 {[%clk 0:03:01.2]} 7.
Nb3 {[%clk 0:03:01.7]} 7... Be7 {[%clk 0:03:01.5]} 8. Be3 {[%clk 0:03:02.3]}
8... Be6 {[%clk 0:03:01.8]} 9. Qd3 {[%clk 0:03:01.5]} 9... O-O {[%clk
0:02:59.3]} 10. Nd5 {[%clk 0:03:01.6]} 10... Nbd7 {[%clk 0:02:59.5]} 11. O-O
{[%clk 0:03:00.8]} 11... Bxd5 {[%clk 0:02:53.3]} 12. exd5 {[%clk 0:03:01.7]}
12... Rc8 {[%clk 0:02:52.3]} 13. c4 {[%clk 0:02:58.7]} 13... Ne8 {[%clk
0:02:44.8]} 14. Qd2 {[%clk 0:02:56.4]} 14... b6 {[%clk 0:02:41.5]} 15. Rac1
{[%clk 0:02:46.2]} 15... a5 {[%clk 0:02:41.6]} 16. Na1 {[%clk 0:02:45.6]} 16...
g6 {[%clk 0:02:38.4]} 17. b3 {[%clk 0:02:36.1]} 17... Ng7 {[%clk 0:02:37.2]} 18.
a3 {[%clk 0:02:36]} 18... Nf5 {[%clk 0:02:31.5]} 19. b4 {[%clk 0:02:35.4]} 19...
axb4 {[%clk 0:02:31.3]} 20. axb4 {[%clk 0:02:36.3]} 20... Nxe3 {[%clk
0:02:09.6]} 21. fxe3 {[%clk 0:02:37.2]} 21... Ra8 {[%clk 0:02:08.8]} 22. Nb3
{[%clk 0:02:36.5]} 22... Bg5 {[%clk 0:02:03.6]} 23. Rc3 {[%clk 0:02:18.6]} 23...
Ra3 {[%clk 0:01:50.1]} 24. Qb2 {[%clk 0:02:16.6]} 24... Qa8 {[%clk 0:01:45.7]}
25. Ra1 {[%clk 0:02:16.3]} 25... Rxa1+ {[%clk 0:01:40.4]} 26. Nxa1 {[%clk
0:02:15.2]} 26... e4 {[%clk 0:01:30.5]} 27. Ra3 {[%clk 0:02:12.2]} 27... Qd8
{[%clk 0:01:22.9]} 28. Nc2 {[%clk 0:02:10.7]} 28... Ne5 {[%clk 0:01:17.9]} 29.
Nd4 {[%clk 0:02:08.9]} 29... Qf6 {[%clk 0:01:13.5]} 30. Qa1 {[%clk 0:01:55.5]}
30... Nd3 {[%clk 0:00:51.3]} 31. Kh1 {[%clk 0:00:40.3]} 31... Bxe3 {[%clk
0:00:47]} 32. Nc2 {[%clk 0:00:39.9]} 32... Qf2 {[%clk 0:00:37.3]} 33. Bxd3
{[%clk 0:00:23.5]} 33... exd3 {[%clk 0:00:36.6]} 34. Nxe3 {[%clk 0:00:23.3]}
34... Qxe3 {[%clk 0:00:35.9]} 35. h3 {[%clk 0:00:18]} 35... Qe2 {[%clk
0:00:22.2]} 36. Ra8 {[%clk 0:00:10.1]} 36... d2 {[%clk 0:00:12.4]} 37. Kh2
{[%clk 0:00:04.8]} 37... d1=Q {[%clk 0:00:10.2]} 0-1

[Event "Early-Titled-Tuesday-Blitz-February-13-2024"]
[Site "Chess.com"]
[Date "2024.02.13"]
[Round "7"]
[White "Sl4werThanYou"]
[Black "Elnaz_Kaliakhmet"]
[Result "0-1"]
[WhiteElo "2625"]
[BlackElo "2369"]
[TimeControl "180+1"]
[EndTime "9:20:42 PST"]
[Termination "Elnaz_Kaliakhmet won by resignation"]

1. d4 {[%clk 0:03:00.9]} 1... Nf6 {[%clk 0:02:58.5]} 2. c4 {[%clk 0:03:00.1]}
2... e6 {[%clk 0:02:58.6]} 3. Bf4 {[%clk 0:03:00.7]} 3... d5 {[%clk 0:02:56.4]}
4. cxd5 {[%clk 0:03:00.7]} 4... exd5 {[%clk 0:02:55.1]} 5. Nc3 {[%clk
0:02:59.4]} 5... Bd6 {[%clk 0:02:48.3]} 6. Bxd6 {[%clk 0:02:58.9]} 6... Qxd6
{[%clk 0:02:48.6]} 7. e3 {[%clk 0:02:59.7]} 7... O-O {[%clk 0:02:43.8]} 8. Bd3
{[%clk 0:02:59.5]} 8... Bg4 {[%clk 0:02:41]} 9. Qb3 {[%clk 0:02:55.7]} 9... b6
{[%clk 0:02:33.3]} 10. h3 {[%clk 0:02:53.8]} 10... Be6 {[%clk 0:02:18.2]} 11.
Nge2 {[%clk 0:02:52.9]} 11... c5 {[%clk 0:02:16.3]} 12. Qa3 {[%clk 0:02:48.5]}
12... Nbd7 {[%clk 0:02:10.2]} 13. O-O {[%clk 0:02:47.7]} 13... Qc6 {[%clk
0:02:04.4]} 14. Bb5 {[%clk 0:02:41.7]} 14... Qc7 {[%clk 0:02:04]} 15. Rac1
{[%clk 0:02:39.1]} 15... Rac8 {[%clk 0:01:47.6]} 16. Rfd1 {[%clk 0:02:36.1]}
16... Rfd8 {[%clk 0:01:36]} 17. Ba6 {[%clk 0:02:20.4]} 17... Rb8 {[%clk
0:01:34.8]} 18. Nb5 {[%clk 0:02:19.3]} 18... Qc6 {[%clk 0:01:30.3]} 19. Nxa7
{[%clk 0:02:14.6]} 19... Qa8 {[%clk 0:01:29]} 20. Bb5 {[%clk 0:02:11.7]} 20...
Rb7 {[%clk 0:01:17.5]} 21. Nc6 {[%clk 0:02:09.1]} 21... Qxa3 {[%clk 0:01:15.9]}
22. bxa3 {[%clk 0:02:10]} 22... Ra8 {[%clk 0:01:04.5]} 23. Ne7+ {[%clk 0:02:10]}
23... Kf8 {[%clk 0:01:04.6]} 24. Bc6 {[%clk 0:02:10.9]} 24... Kxe7 {[%clk
0:01:05.2]} 25. Bxb7 {[%clk 0:02:10.3]} 25... Rxa3 {[%clk 0:01:05.8]} 26. Nc3
{[%clk 0:02:07.8]} 26... c4 {[%clk 0:00:41.8]} 27. Bc6 {[%clk 0:01:58.3]} 27...
Nb8 {[%clk 0:00:37]} 28. Bb5 {[%clk 0:01:53.7]} 28... Bd7 {[%clk 0:00:37]} 29.
Bxd7 {[%clk 0:01:34.3]} 29... Nbxd7 {[%clk 0:00:37.9]} 30. Rd2 {[%clk
0:01:34.4]} 30... Rxc3 {[%clk 0:00:22.3]} 31. Rxc3 {[%clk 0:01:33.9]} 31... Ne4
{[%clk 0:00:23]} 32. Rdc2 {[%clk 0:01:33.2]} 32... Nxc3 {[%clk 0:00:22.9]} 33.
Rxc3 {[%clk 0:01:34.1]} 33... b5 {[%clk 0:00:22.9]} 34. Ra3 {[%clk 0:01:34.7]}
34... b4 {[%clk 0:00:22.4]} 35. Ra5 {[%clk 0:01:35.2]} 35... c3 {[%clk
0:00:19.9]} 36. Ra6 {[%clk 0:01:34.3]} 36... Nb8 {[%clk 0:00:16.2]} 37. Ra5
{[%clk 0:01:33.7]} 37... Nd7 {[%clk 0:00:15.2]} 38. Ra8 {[%clk 0:00:35.2]} 38...
Nb6 {[%clk 0:00:14]} 39. Ra5 {[%clk 0:00:18.2]} 39... Nc4 {[%clk 0:00:13.5]} 40.
Rc5 {[%clk 0:00:13.1]} 40... c2 {[%clk 0:00:13.5]} 41. Rxc4 {[%clk 0:00:12.8]}
41... dxc4 {[%clk 0:00:13.3]} 0-1

[Event "Early-Titled-Tuesday-Blitz-February-13-2024"]
[Site "Chess.com"]
[Date "2024.02.13"]
[Round "7"]
[White "ChainedDowntohell"]
[Black "azikom"]
[Result "0-1"]
[WhiteElo "2539"]
[BlackElo "2735"]
[TimeControl "180+1"]
[EndTime "9:20:43 PST"]
[Termination "azikom won by resignation"]

1. d4 {[%clk 0:03:00.9]} 1... d5 {[%clk 0:02:58.8]} 2. c4 {[%clk 0:02:59.9]}
2... e6 {[%clk 0:02:59.2]} 3. Nc3 {[%clk 0:02:58.3]} 3... c6 {[%clk 0:02:59.3]}
4. Qd3 {[%clk 0:02:47.6]} 4... f5 {[%clk 0:02:57.7]} 5. Bf4 {[%clk 0:02:45.4]}
5... Nf6 {[%clk 0:02:58]} 6. Nf3 {[%clk 0:02:45.4]} 6... Be7 {[%clk 0:02:57.7]}
7. e3 {[%clk 0:02:45.6]} 7... O-O {[%clk 0:02:58.2]} 8. Qc2 {[%clk 0:02:45.8]}
8... Ne4 {[%clk 0:02:55.5]} 9. Bd3 {[%clk 0:02:45.3]} 9... Nd7 {[%clk
0:02:52.7]} 10. Ne5 {[%clk 0:02:40.9]} 10... Nxe5 {[%clk 0:02:49.4]} 11. Bxe5
{[%clk 0:02:41]} 11... Bd6 {[%clk 0:02:49.1]} 12. Bxd6 {[%clk 0:02:23.4]} 12...
Qxd6 {[%clk 0:02:50]} 13. c5 {[%clk 0:02:23.4]} 13... Qe7 {[%clk 0:02:48.2]} 14.
f4 {[%clk 0:02:23.3]} 14... b6 {[%clk 0:02:39.2]} 15. b4 {[%clk 0:02:17.7]}
15... a5 {[%clk 0:02:33.7]} 16. Bxe4 {[%clk 0:01:50.7]} 16... fxe4 {[%clk
0:02:33.2]} 17. Na4 {[%clk 0:01:42.5]} 17... axb4 {[%clk 0:02:30.6]} 18. Nxb6
{[%clk 0:01:41.5]} 18... Ra3 {[%clk 0:02:29.7]} 19. O-O {[%clk 0:01:22.7]} 19...
Rxe3 {[%clk 0:02:24.3]} 20. Qd2 {[%clk 0:01:20.8]} 20... Rc3 {[%clk 0:02:06.3]}
21. Rfc1 {[%clk 0:01:07.7]} 21... Ba6 {[%clk 0:01:51.8]} 22. Rxc3 {[%clk
0:00:54.1]} 22... bxc3 {[%clk 0:01:52.7]} 23. Qxc3 {[%clk 0:00:48.7]} 23... Rxf4
{[%clk 0:01:51.7]} 24. Qa5 {[%clk 0:00:33.6]} 24... Qf6 {[%clk 0:01:43]} 25. h3
{[%clk 0:00:19.5]} 25... Qxd4+ {[%clk 0:01:41.9]} 26. Kh2 {[%clk 0:00:18.7]}
26... Qxa1 {[%clk 0:01:40.6]} 27. Qxa6 {[%clk 0:00:17.2]} 27... h6 {[%clk
0:01:25.1]} 28. Nd7 {[%clk 0:00:16.4]} 28... Qf1 {[%clk 0:01:15]} 29. Qxc6
{[%clk 0:00:11.4]} 29... Rf2 {[%clk 0:01:03.9]} 30. Qxe6+ {[%clk 0:00:10.7]}
30... Kh7 {[%clk 0:01:03.1]} 31. Qg4 {[%clk 0:00:07]} 31... e3 {[%clk
0:00:47.7]} 32. Ne5 {[%clk 0:00:06.5]} 32... Rf6 {[%clk 0:00:45.5]} 33. c6
{[%clk 0:00:05.1]} 33... e2 {[%clk 0:00:44.6]} 34. Nd3 {[%clk 0:00:03.5]} 34...
e1=Q {[%clk 0:00:35.8]} 35. Nxe1 {[%clk 0:00:03]} 35... Qxe1 {[%clk 0:00:35.8]}
36. Qd7 {[%clk 0:00:01.6]} 36... Qe5+ {[%clk 0:00:33.5]} 37. Kg1 {[%clk
0:00:01.9]} 37... Qd4+ {[%clk 0:00:29]} 38. Kh2 {[%clk 0:00:01.7]} 38... Qf4+
{[%clk 0:00:28.7]} 39. Kg1 {[%clk 0:00:02.2]} 39... Qc1+ {[%clk 0:00:28.6]} 40.
Kh2 {[%clk 0:00:02.4]} 40... Qxc6 {[%clk 0:00:29.2]} 0-1

[Event "Early-Titled-Tuesday-Blitz-February-13-2024"]
[Site "Chess.com"]
[Date "2024.02.13"]
[Round "7"]
[White "GianmarcoVaR"]
[Black "Ykow"]
[Result "1/2-1/2"]
[WhiteElo "2720"]
[BlackElo "2535"]
[TimeControl "180+1"]
[EndTime "9:20:46 PST"]
[Termination "Game drawn by repetition"]

1. e4 {[%clk 0:02:54.9]} 1... c5 {[%clk 0:02:54.1]} 2. Nf3 {[%clk 0:02:54.9]}
2... Nf6 {[%clk 0:02:54.4]} 3. Nc3 {[%clk 0:02:52]} 3... d6 {[%clk 0:02:54.1]}
4. d4 {[%clk 0:02:41.4]} 4... cxd4 {[%clk 0:02:55]} 5. Nxd4 {[%clk 0:02:41.9]}
5... e5 {[%clk 0:02:54.5]} 6. Bb5+ {[%clk 0:02:40.2]} 6... Nbd7 {[%clk
0:02:54.6]} 7. Nf5 {[%clk 0:02:36.2]} 7... a6 {[%clk 0:02:55.2]} 8. Bxd7+ {[%clk
0:02:35.9]} 8... Qxd7 {[%clk 0:02:56.1]} 9. Ne3 {[%clk 0:02:07.5]} 9... Qc6
{[%clk 0:02:55.8]} 10. Ned5 {[%clk 0:02:05.1]} 10... Nxd5 {[%clk 0:02:55.3]} 11.
Nxd5 {[%clk 0:02:03.9]} 11... Be6 {[%clk 0:02:55.1]} 12. Be3 {[%clk 0:01:47.8]}
12... Bxd5 {[%clk 0:02:49.7]} 13. exd5 {[%clk 0:01:47.3]} 13... Qb5 {[%clk
0:02:49.9]} 14. b3 {[%clk 0:01:44.3]} 14... Be7 {[%clk 0:02:46.2]} 15. c4 {[%clk
0:01:44.6]} 15... Qa5+ {[%clk 0:02:46.2]} 16. Qd2 {[%clk 0:01:44.5]} 16... Qxd2+
{[%clk 0:02:46.4]} 17. Kxd2 {[%clk 0:01:44.1]} 17... Kd7 {[%clk 0:02:46.4]} 18.
f3 {[%clk 0:01:31.7]} 18... f5 {[%clk 0:02:45.8]} 19. Rac1 {[%clk 0:01:13.2]}
19... Rac8 {[%clk 0:02:43.6]} 20. Ke2 {[%clk 0:01:05.9]} 20... h5 {[%clk
0:02:41.8]} 21. a4 {[%clk 0:01:05.7]} 21... h4 {[%clk 0:02:40.5]} 22. a5 {[%clk
0:01:05.8]} 22... g5 {[%clk 0:02:39.4]} 23. b4 {[%clk 0:01:02.9]} 23... g4
{[%clk 0:02:37.2]} 24. fxg4 {[%clk 0:01:02.7]} 24... Rhg8 {[%clk 0:02:34.9]} 25.
gxf5 {[%clk 0:00:45.9]} 25... Rxg2+ {[%clk 0:02:34.1]} 26. Kd3 {[%clk
0:00:40.1]} 26... Rf8 {[%clk 0:02:21.6]} 27. Rcg1 {[%clk 0:00:14.8]} 27... Rxg1
{[%clk 0:02:18.9]} 28. Rxg1 {[%clk 0:00:14.7]} 28... Rxf5 {[%clk 0:02:19.8]} 29.
Ke4 {[%clk 0:00:14.3]} 29... Rf7 {[%clk 0:02:18.3]} 30. h3 {[%clk 0:00:11.2]}
30... Kc7 {[%clk 0:02:13.3]} 31. Rg4 {[%clk 0:00:11.6]} 31... Kd7 {[%clk
0:02:12.2]} 32. Rg8 {[%clk 0:00:11.6]} 32... Kc7 {[%clk 0:02:12.1]} 33. Bb6+
{[%clk 0:00:11.5]} 33... Kd7 {[%clk 0:02:12.2]} 34. Rb8 {[%clk 0:00:12.1]} 34...
Rf4+ {[%clk 0:02:12.5]} 35. Kd3 {[%clk 0:00:11.4]} 35... Rf3+ {[%clk 0:02:09.6]}
36. Ke4 {[%clk 0:00:09]} 36... Rf4+ {[%clk 0:01:17.4]} 37. Ke3 {[%clk
0:00:07.7]} 37... Rxc4 {[%clk 0:01:16.4]} 38. Rxb7+ {[%clk 0:00:08.4]} 38... Ke8
{[%clk 0:01:16.3]} 39. b5 {[%clk 0:00:08.9]} 39... Bg5+ {[%clk 0:01:13.5]} 40.
Kd3 {[%clk 0:00:08.8]} 40... axb5 {[%clk 0:01:12.5]} 41. a6 {[%clk 0:00:09.3]}
41... e4+ {[%clk 0:01:12.9]} 42. Ke2 {[%clk 0:00:05.7]} 42... Rc2+ {[%clk
0:01:12.8]} 43. Kf1 {[%clk 0:00:05.7]} 43... Rc1+ {[%clk 0:01:03.9]} 44. Kg2
{[%clk 0:00:05.6]} 44... Rc2+ {[%clk 0:01:04]} 45. Kf1 {[%clk 0:00:04.2]} 45...
Rc1+ {[%clk 0:01:04.3]} 46. Kg2 {[%clk 0:00:04.7]} 46... Rc2+ {[%clk 0:01:04.5]}
47. Kh1 {[%clk 0:00:05.1]} 47... Rc1+ {[%clk 0:01:02]} 48. Kh2 {[%clk
0:00:03.1]} 48... Bf4+ {[%clk 0:00:48.4]} 49. Kg2 {[%clk 0:00:02.9]} 49... Rc2+
{[%clk 0:00:48.5]} 50. Kg1 {[%clk 0:00:03]} 50... Rc1+ {[%clk 0:00:43]} 51. Kg2
{[%clk 0:00:02.6]} 51... Rc2+ {[%clk 0:00:43]} 52. Kh1 {[%clk 0:00:02.1]} 52...
Rc1+ {[%clk 0:00:38.2]} 53. Kg2 {[%clk 0:00:01.9]} 1/2-1/2

[Event "Early-Titled-Tuesday-Blitz-February-13-2024"]
[Site "Chess.com"]
[Date "2024.02.13"]
[Round "7"]
[White "lachesisQ"]
[Black "Sychev_Klementy"]
[Result "0-1"]
[WhiteElo "3046"]
[BlackElo "2923"]
[TimeControl "180+1"]
[EndTime "9:20:47 PST"]
[Termination "Sychev_Klementy won by resignation"]

1. e4 {[%clk 0:03:00.9]} 1... e5 {[%clk 0:03:00]} 2. f4 {[%clk 0:03:00.9]} 2...
exf4 {[%clk 0:02:58]} 3. Nf3 {[%clk 0:03:01]} 3... d6 {[%clk 0:02:58.5]} 4. Bc4
{[%clk 0:02:59.8]} 4... h6 {[%clk 0:02:56.2]} 5. h4 {[%clk 0:02:59.8]} 5... Nf6
{[%clk 0:02:49.9]} 6. Nc3 {[%clk 0:02:59.5]} 6... Nc6 {[%clk 0:02:30.7]} 7. d4
{[%clk 0:02:59]} 7... Nh5 {[%clk 0:02:30.6]} 8. a3 {[%clk 0:02:55.6]} 8... Bg4
{[%clk 0:02:27.6]} 9. Qd3 {[%clk 0:02:55.3]} 9... a6 {[%clk 0:02:15.9]} 10. Bd2
{[%clk 0:02:54.8]} 10... Be7 {[%clk 0:01:57.5]} 11. O-O-O {[%clk 0:02:54.3]}
11... Qd7 {[%clk 0:01:53.7]} 12. Nd5 {[%clk 0:02:53.6]} 12... O-O {[%clk
0:01:18]} 13. Nxf4 {[%clk 0:02:37.4]} 13... b5 {[%clk 0:01:16.7]} 14. Bd5 {[%clk
0:02:31.8]} 14... Nf6 {[%clk 0:01:12.6]} 15. Ba2 {[%clk 0:02:27.8]} 15... b4
{[%clk 0:00:58.9]} 16. a4 {[%clk 0:02:13.7]} 16... Rab8 {[%clk 0:00:53.7]} 17.
Rde1 {[%clk 0:02:04.9]} 17... Na5 {[%clk 0:00:53.1]} 18. e5 {[%clk 0:01:40.5]}
18... Qxa4 {[%clk 0:00:42.8]} 19. Bb1 {[%clk 0:01:27.4]} 19... dxe5 {[%clk
0:00:37.4]} 20. Nxe5 {[%clk 0:01:27.2]} 20... Bd7 {[%clk 0:00:24.4]} 21. g4
{[%clk 0:01:25.2]} 21... Bb5 {[%clk 0:00:23.4]} 22. Qf3 {[%clk 0:01:19.6]} 22...
b3 {[%clk 0:00:20.6]} 23. Bxa5 {[%clk 0:01:14.7]} 23... bxc2 {[%clk 0:00:20]}
24. Bxc2 {[%clk 0:01:05.5]} 24... Qxa5 {[%clk 0:00:19.8]} 25. Kb1 {[%clk
0:00:58.2]} 25... Ba4 {[%clk 0:00:16.9]} 26. Nfd3 {[%clk 0:00:22.3]} 26... Nd5
{[%clk 0:00:11.5]} 27. Nc6 {[%clk 0:00:20.8]} 27... Bxc6 {[%clk 0:00:10.5]} 28.
Qf5 {[%clk 0:00:15.8]} 28... Nc3+ {[%clk 0:00:08.5]} 29. Kc1 {[%clk 0:00:16.2]}
29... Qxf5 {[%clk 0:00:08.6]} 30. gxf5 {[%clk 0:00:17.1]} 30... Bxh1 {[%clk
0:00:08.5]} 31. bxc3 {[%clk 0:00:16.7]} 31... Ba3+ {[%clk 0:00:08.8]} 32. Kd2
{[%clk 0:00:16.8]} 32... Bc6 {[%clk 0:00:08.8]} 33. Ne5 {[%clk 0:00:16.6]} 33...
Ba8 {[%clk 0:00:08.8]} 34. f6 {[%clk 0:00:16.2]} 34... g6 {[%clk 0:00:08.6]} 35.
h5 {[%clk 0:00:16.2]} 35... g5 {[%clk 0:00:08.8]} 36. Ng4 {[%clk 0:00:15.3]}
36... Rfe8 {[%clk 0:00:09.2]} 37. Nxh6+ {[%clk 0:00:15.4]} 37... Kf8 {[%clk
0:00:09.9]} 38. Rg1 {[%clk 0:00:15.8]} 38... Bd6 {[%clk 0:00:10.4]} 39. c4
{[%clk 0:00:08.4]} 39... Bf4+ {[%clk 0:00:09.9]} 40. Kc3 {[%clk 0:00:08.9]}
40... Re3+ {[%clk 0:00:10.1]} 41. Bd3 {[%clk 0:00:07.5]} 41... Be4 {[%clk
0:00:10.4]} 0-1

[Event "Early-Titled-Tuesday-Blitz-February-13-2024"]
[Site "Chess.com"]
[Date "2024.02.13"]
[Round "7"]
[White "yuriydovzik"]
[Black "Happy1712Drummer"]
[Result "0-1"]
[WhiteElo "2118"]
[BlackElo "2384"]
[TimeControl "180+1"]
[EndTime "9:20:48 PST"]
[Termination "Happy1712Drummer won on time"]

1. e4 {[%clk 0:02:54.7]} 1... c5 {[%clk 0:02:59.9]} 2. Nf3 {[%clk 0:02:54.1]}
2... e6 {[%clk 0:03:00.4]} 3. Nc3 {[%clk 0:02:50.2]} 3... Nc6 {[%clk 0:02:54]}
4. d4 {[%clk 0:02:49.3]} 4... cxd4 {[%clk 0:02:54.2]} 5. Nxd4 {[%clk 0:02:49.2]}
5... Nf6 {[%clk 0:02:54.8]} 6. Ndb5 {[%clk 0:02:46.1]} 6... Bc5 {[%clk 0:02:55]}
7. Nd6+ {[%clk 0:02:41.1]} 7... Ke7 {[%clk 0:02:54.8]} 8. Bf4 {[%clk 0:02:35.5]}
8... e5 {[%clk 0:02:54.9]} 9. Nf5+ {[%clk 0:02:33.4]} 9... Kf8 {[%clk
0:02:55.1]} 10. Bg5 {[%clk 0:02:27.6]} 10... d6 {[%clk 0:02:49.6]} 11. Bc4
{[%clk 0:02:08.8]} 11... Be6 {[%clk 0:02:39]} 12. Bxe6 {[%clk 0:01:40.9]} 12...
fxe6 {[%clk 0:02:38.6]} 13. O-O {[%clk 0:01:39.1]} 13... exf5 {[%clk 0:02:29.2]}
14. exf5 {[%clk 0:01:37.9]} 14... Ne7 {[%clk 0:01:56.4]} 15. Bxf6 {[%clk
0:01:27.5]} 15... gxf6 {[%clk 0:01:56.2]} 16. Ne4 {[%clk 0:01:27.5]} 16... Nc6
{[%clk 0:01:15]} 17. c3 {[%clk 0:01:13.7]} 17... Qe7 {[%clk 0:00:53.7]} 18. b4
{[%clk 0:01:04.7]} 18... Bb6 {[%clk 0:00:53.9]} 19. Qd5 {[%clk 0:00:47.6]} 19...
Rd8 {[%clk 0:00:41.5]} 20. Rad1 {[%clk 0:00:46.6]} 20... Bc7 {[%clk 0:00:25.6]}
21. a3 {[%clk 0:00:35.4]} 21... Qf7 {[%clk 0:00:23.9]} 22. Qb5 {[%clk
0:00:30.5]} 22... Bb8 {[%clk 0:00:17]} 23. a4 {[%clk 0:00:23.8]} 23... a6 {[%clk
0:00:13.4]} 24. Qe2 {[%clk 0:00:20.5]} 24... Rg8 {[%clk 0:00:13.7]} 25. b5
{[%clk 0:00:18.8]} 25... axb5 {[%clk 0:00:13.5]} 26. axb5 {[%clk 0:00:18.4]}
26... Ne7 {[%clk 0:00:12.9]} 27. c4 {[%clk 0:00:14.9]} 27... Nxf5 {[%clk
0:00:12.3]} 28. Qf3 {[%clk 0:00:14.6]} 28... Nh4 {[%clk 0:00:10.3]} 29. Qh3
{[%clk 0:00:08.6]} 29... Nxg2 {[%clk 0:00:08.6]} 30. Kh1 {[%clk 0:00:08]} 30...
Nf4 {[%clk 0:00:08.9]} 31. Qf5 {[%clk 0:00:07.1]} 31... Qg6 {[%clk 0:00:07.3]}
32. Qxf6+ {[%clk 0:00:04.3]} 32... Qxf6 {[%clk 0:00:06.1]} 33. Nxf6 {[%clk
0:00:04.6]} 33... Rg6 {[%clk 0:00:05.2]} 34. Ne4 {[%clk 0:00:04.7]} 34... Ke7
{[%clk 0:00:05.1]} 35. Rg1 {[%clk 0:00:01.2]} 35... Rdg8 {[%clk 0:00:03.6]} 0-1